bitfinex-derivatives/quotes_BTCF0:USTF0_20250106
["timestamp","ask_amount","ask_price","bid_price","bid_amount"]
[1736131365897,0.41459749,98896.0,98882.0,0.045522]
[1736131367009,0.04918747,98895.0,98882.0,0.045522]
[1736131367209,0.04918747,98895.0,98882.0,0.046522]
[1736131367607,0.04918747,98895.0,98885.0,0.04552]
[1736131368512,0.05018747,98895.0,98885.0,0.04552]
[1736131368816,0.001,98895.0,98885.0,0.04552]
[1736131369114,0.09925819,98895.0,98885.0,0.04552]
[1736131369702,0.09925819,98895.0,98887.0,0.045519]
[1736131369899,0.10025819,98895.0,98887.0,0.045519]
[1736131370505,0.09825819,98895.0,98887.0,0.045519]
[1736131371008,0.09825819,98895.0,98887.0,0.046519]
[1736131372506,0.09825819,98895.0,98887.0,0.045519]
[1736131372815,0.09825819,98895.0,98887.0,0.046519]
[1736131373016,0.09825819,98895.0,98887.0,0.047519]
[1736131373802,0.09825819,98895.0,98887.0,0.045519]
[1736131374115,0.09825819,98895.0,98887.0,0.046519]
[1736131374310,0.09825819,98895.0,98887.0,0.22590241]
[1736131374614,0.09925819,98895.0,98887.0,0.22690241]
[1736131375313,0.14477519,98895.0,98887.0,0.18238341]
[1736131375614,0.14477519,98895.0,98888.0,0.18038341]
[1736131376016,0.14377519,98895.0,98888.0,0.18038341]
[1736131376209,0.045518,98894.0,98888.0,0.18038341]
[1736131376811,0.001,98895.0,98888.0,0.18038341]
[1736131377007,0.001,98895.0,98890.0,0.045519]
[1736131377008,0.002,98895.0,98890.0,0.045519]
[1736131377208,0.003,98895.0,98890.0,0.045519]
[1736131378617,0.003,98895.0,98892.0,0.24141815]
[1736131378911,0.3608,98896.0,98892.0,0.24141815]
[1736131379817,0.3608,98896.0,98891.0,0.24141815]
[1736131382410,0.3608,98896.0,98895.0,0.18105501]
[1736131384011,0.3608,98896.0,98891.0,0.24241815]
[1736131384214,0.3608,98896.0,98891.0,0.24141815]
[1736131384617,0.045518,98893.0,98891.0,0.24141815]
[1736131385214,0.3608,98896.0,98883.0,0.29919469]
[1736131385415,0.3608,98887.0,98876.0,0.36056659]
[1736131385617,0.045525,98878.0,98876.0,0.35996659]
[1736131387015,0.045528,98871.0,98866.0,0.30205373]
[1736131387217,0.04553,98867.0,98866.0,0.30205373]
[1736131388811,0.40633,98867.0,98866.0,0.30205373]
[1736131389016,0.40633,98867.0,98857.0,0.35996659]
[1736131389017,0.04553,98866.0,98865.0,0.18126731]
[1736131390324,0.04553,98866.0,98850.0,0.18126731]
[1736131390527,0.04553,98866.0,98865.0,0.001]
[1736131391930,0.05644173,98866.0,98854.0,0.22680231]
[1736131392428,0.05344173,98866.0,98865.0,0.001]
[1736131392624,0.05444173,98866.0,98865.0,0.002]
[1736131393125,0.05444173,98866.0,98865.0,0.001]
[1736131394834,0.045531,98865.0,98856.0,0.18126731]
[1736131395331,0.3608,98862.0,98861.0,0.18126731]
[1736131396523,0.3608,98862.0,98861.0,0.18226731]
[1736131397329,0.045538,98850.0,98842.0,0.30205373]
[1736131398129,0.045539,98848.0,98842.0,0.30205373]
[1736131398328,0.045539,98848.0,98835.0,0.66285373]
[1736131398930,0.045539,98848.0,98835.0,0.70839773]
[1736131399330,0.045539,98848.0,98842.0,0.001]
[1736131399831,0.045539,98848.0,98835.0,0.71091773]
[1736131400033,0.045539,98848.0,98835.0,0.408344]
[1736131400426,0.046539,98848.0,98835.0,0.3618]
[1736131400630,0.046539,98848.0,98837.0,0.045543]
[1736131402028,0.045539,98848.0,98837.0,0.045543]
[1736131402231,0.00856537,98850.0,98847.0,0.045538]
[1736131402630,0.3608,98852.0,98848.0,0.045537]
[1736131403834,0.3638,98852.0,98848.0,0.045537]
[1736131405238,0.004,98852.0,98848.0,0.045537]
[1736131406232,0.001,98852.0,98848.0,0.046537]
[1736131407027,0.406331,98862.0,98848.0,0.001]
[1736131407338,0.3608,98862.0,98857.0,0.045533]
[1736131407535,0.04553,98865.0,98861.0,0.3608]
[1736131408842,0.04553,98865.0,98861.0,0.3618]
[1736131410831,0.05381441,98865.0,98861.0,0.001]
[1736131411435,0.05381441,98865.0,98857.0,0.045533]
[1736131411635,0.05381441,98865.0,98861.0,0.001]
[1736131412440,0.05381441,98865.0,98857.0,0.045533]
[1736131412642,0.05381441,98865.0,98857.0,0.046533]
[1736131413842,0.406335,98858.0,98857.0,0.001]
[1736131414248,0.406335,98858.0,98848.0,0.30205373]
[1736131414551,0.406335,98858.0,98849.0,0.30205373]
[1736131415239,0.408335,98858.0,98849.0,0.30205373]
[1736131415836,0.406335,98858.0,98849.0,0.30205373]
[1736131416039,0.406335,98858.0,98849.0,0.30405373]
[1736131416442,0.407335,98858.0,98849.0,0.30405373]
[1736131417450,0.407335,98858.0,98849.0,0.30305373]
[1736131417640,0.045536,98857.0,98849.0,0.30305373]
[1736131417841,0.3618,98858.0,98849.0,0.30305373]
[1736131418042,0.045538,98852.0,98850.0,0.23169743]
[1736131419142,0.046538,98852.0,98850.0,0.23169743]
[1736131419352,0.003,98852.0,98844.0,0.30240642]
[1736131419654,0.3608,98848.0,98844.0,0.30240642]
[1736131421150,0.406339,98849.0,98844.0,0.30240642]
[1736131421543,0.002,98848.0,98844.0,0.30240642]
[1736131422149,0.003,98848.0,98844.0,0.30240642]
[1736131422452,0.3618,98848.0,98844.0,0.30240642]
[1736131422652,0.3628,98848.0,98844.0,0.30240642]
[1736131424050,0.41034,98848.0,98844.0,0.30240642]
[1736131424849,0.40934,98848.0,98844.0,0.30240642]
[1736131425051,0.40734,98848.0,98844.0,0.30240642]
[1736131425247,0.40734,98848.0,98845.0,0.30240642]
[1736131425445,0.04554,98847.0,98845.0,0.30240642]
[1736131426245,0.04554,98847.0,98844.0,0.30240642]
[1736131427447,0.04754,98847.0,98844.0,0.30240642]
[1736131427758,0.04954,98847.0,98844.0,0.30240642]
[1736131428855,0.04754,98847.0,98844.0,0.30240642]
[1736131429448,0.04654,98847.0,98844.0,0.30240642]
[1736131429648,0.04854,98847.0,98844.0,0.30240642]
[1736131430465,0.045541,98846.0,98844.0,0.30240642]
[1736131431558,0.047541,98846.0,98843.0,0.30240642]
[1736131431759,0.049541,98846.0,98843.0,0.30240642]
[1736131432956,0.003,98846.0,98836.0,0.35996659]
[1736131433963,0.045543,98841.0,98836.0,0.35996659]
[1736131434457,0.3608,98837.0,98831.0,0.35996659]
[1736131434761,0.045547,98833.0,98831.0,0.35996659]
[1736131436161,0.045547,98833.0,98831.0,0.30253437]
[1736131436957,0.045547,98833.0,98831.0,0.30353437]
[1736131437267,0.045547,98833.0,98831.0,0.001]
[1736131439164,0.05396454,98833.0,98831.0,0.001]
[1736131439558,0.045547,98833.0,98831.0,0.001]
[1736131439954,0.3608,98837.0,98835.0,0.045546]
[1736131441559,0.3608,98837.0,98832.0,0.30253437]
[1736131441560,0.406345,98837.0,98832.0,0.30253437]
[1736131442363,0.045546,98834.0,98832.0,0.30253437]
[1736131442967,0.045546,98834.0,98831.0,0.30253437]
[1736131443267,0.3608,98837.0,98831.0,0.30253437]
[1736131443459,0.045547,98833.0,98831.0,0.30253437]
[1736131444059,0.045548,98831.0,98830.0,0.30253437]
[1736131445462,0.3608,98837.0,98828.0,0.30253437]
[1736131445463,0.045548,98829.0,98828.0,0.30253437]
[1736131447460,0.045548,98829.0,98827.0,0.30253437]
[1736131447661,0.045546,98836.0,98827.0,0.30253437]
[1736131448166,0.045546,98836.0,98833.0,0.045547]
[1736131448373,0.12079841,98844.0,98830.0,0.3608]
[1736131448671,0.12079841,98844.0,98842.0,0.045542]
[1736131448865,0.12079841,98847.0,98842.0,0.045542]
[1736131449070,0.12079841,98847.0,98846.0,0.045541]
[1736131450166,0.003,98847.0,98846.0,0.045541]
[1736131450566,0.006,98847.0,98846.0,0.045541]
[1736131451366,0.005,98847.0,98846.0,0.045541]
[1736131451668,0.002,98847.0,98846.0,0.045541]
[1736131451866,0.007,98847.0,98846.0,0.045541]
[1736131452074,0.007,98847.0,98844.0,0.30253437]
[1736131452372,0.007,98847.0,98843.0,0.30253437]
[1736131452974,0.005,98847.0,98843.0,0.34807637]
[1736131453472,0.04854,98847.0,98843.0,0.30253437]
[1736131453968,0.04754,98847.0,98843.0,0.30253437]
[1736131454869,0.04854,98847.0,98843.0,0.30253437]
[1736131455274,0.04854,98847.0,98842.0,0.30253437]
[1736131455774,0.05054,98847.0,98842.0,0.30253437]
[1736131457077,0.04854,98847.0,98842.0,0.30253437]
[1736131457276,0.05354,98847.0,98842.0,0.79422831]
[1736131458771,0.05354,98847.0,98844.0,0.045541]
[1736131458772,0.002,98847.0,98844.0,0.045541]
[1736131458978,0.002,98847.0,98845.0,0.045541]
[1736131458979,0.005,98847.0,98845.0,0.045541]
[1736131459870,0.002,98847.0,98845.0,0.045541]
[1736131460073,0.003,98847.0,98845.0,0.045541]
[1736131460275,0.12079841,98860.0,98844.0,0.30253437]
[1736131460579,0.12079841,98860.0,98857.0,0.045535]
[1736131462079,0.00905026,98865.0,98857.0,0.048535]
[1736131462271,0.3608,98861.0,98857.0,0.003]
[1736131462675,0.3608,98861.0,98857.0,0.004]
[1736131463274,0.3608,98861.0,98855.0,0.045536]
[1736131463580,0.3618,98861.0,98860.0,0.24181154]
[1736131463978,0.3628,98861.0,98860.0,0.24181154]
[1736131464374,0.3628,98861.0,98858.0,0.24181154]
[1736131465576,0.3618,98861.0,98858.0,0.24181154]
[1736131465881,0.3608,98861.0,98860.0,0.001]
[1736131466085,0.3618,98861.0,98860.0,0.001]
[1736131466475,0.3618,98861.0,98858.0,0.24181154]
[1736131466678,0.3638,98861.0,98858.0,0.24181154]
[1736131467086,0.3618,98861.0,98858.0,0.24181154]
[1736131467272,0.3618,98861.0,98860.0,0.004]
[1736131468877,0.3618,98861.0,98860.0,0.003]
[1736131469182,0.3638,98861.0,98860.0,0.003]
[1736131469382,0.3648,98861.0,98858.0,0.24181154]
[1736131469878,0.3608,98861.0,98860.0,0.001]
[1736131470082,0.3608,98861.0,98860.0,0.004]
[1736131470486,0.3608,98861.0,98858.0,0.24181154]
[1736131470783,0.3638,98861.0,98858.0,0.24181154]
[1736131471179,0.3628,98861.0,98860.0,0.003]
[1736131472577,0.3618,98861.0,98860.0,0.003]
[1736131472777,0.3618,98861.0,98860.0,0.004]
[1736131473180,0.3608,98861.0,98860.0,0.001]
[1736131473381,0.3628,98861.0,98857.0,0.24181154]
[1736131473579,0.3628,98861.0,98860.0,0.001]
[1736131473783,0.3608,98861.0,98860.0,0.001]
[1736131473984,0.3618,98861.0,98860.0,0.004]
[1736131474184,0.3618,98861.0,98860.0,0.003]
[1736131474387,0.3618,98861.0,98860.0,0.004]
[1736131476091,0.3628,98861.0,98860.0,0.001]
[1736131476783,0.3618,98861.0,98860.0,0.004]
[1736131485992,0.49820275,98861.0,98860.0,0.004]
[1736131486494,0.12615588,98869.0,98868.0,0.04553]
[1736131486791,0.1,98900.0,98899.0,0.045516]
[1736131486998,0.51387833,98927.0,98907.0,0.045512]
[1736131487191,0.2173,98927.0,98907.0,0.406312]
[1736131487387,0.262803,98927.0,98907.0,0.406312]
[1736131487590,0.28247537,98918.0,98907.0,0.3608]
[1736131487889,0.04551,98912.0,98907.0,0.3608]
[1736131488095,0.045512,98909.0,98907.0,0.3608]
[1736131488288,0.045514,98904.0,98899.0,0.3608]
[1736131488483,0.2173,98903.0,98899.0,0.3608]
[1736131489689,0.007,98900.0,98899.0,0.3618]
[1736131489890,0.04217078,98903.0,98900.0,0.35218571]
[1736131490097,0.045514,98902.0,98900.0,0.35218571]
[1736131490293,0.263114,98902.0,98900.0,0.35218571]
[1736131490492,0.263114,98902.0,98899.0,0.71398571]
[1736131490895,0.05063443,98902.0,98899.0,0.71298571]
[1736131491094,0.05063443,98902.0,98900.0,0.001]
[1736131491501,0.05063443,98902.0,98899.0,0.66212236]
[1736131491797,0.05063443,98902.0,98899.0,0.66312236]
[1736131492100,0.09614843,98902.0,98899.0,0.66312236]
[1736131493096,0.09614843,98902.0,98900.0,0.001]
[1736131493394,0.09714843,98902.0,98900.0,0.001]
[1736131493697,0.09714843,98902.0,98898.0,0.3608]
[1736131493903,0.09814843,98902.0,98898.0,0.3608]
[1736131494406,0.05263443,98902.0,98894.0,0.30132236]
[1736131494592,0.045517,98897.0,98894.0,0.30132236]
[1736131495802,0.045517,98897.0,98895.0,0.24097956]
[1736131496389,0.05063443,98902.0,98895.0,0.24097956]
[1736131497111,0.05063443,98902.0,98896.0,0.24097956]
[1736131497300,0.04217078,98903.0,98901.0,0.045515]
[1736131497501,0.00910884,98908.0,98902.0,0.3608]
[1736131497696,0.3608,98910.0,98902.0,0.3608]
[1736131498597,0.3608,98910.0,98906.0,0.045512]
[1736131498793,0.00922911,98912.0,98906.0,0.045512]
[1736131498995,0.00922911,98912.0,98910.0,0.3608]
[1736131499997,0.2013,98911.0,98910.0,0.3608]
[1736131500203,0.2033,98911.0,98910.0,0.3608]
[1736131501702,0.004,98911.0,98910.0,0.3608]
[1736131503103,0.00922911,98912.0,98910.0,0.3608]
[1736131503301,0.241806,98920.0,98910.0,0.3608]
[1736131504411,0.002,98912.0,98910.0,0.3608]
[1736131504618,0.004,98912.0,98910.0,0.3608]
[1736131505406,0.045495,98944.0,98933.0,0.0455]
[1736131505599,0.2172,98939.0,98936.0,0.406299]
[1736131505806,0.2035,98943.0,98938.0,0.045498]
[1736131506703,0.2035,98943.0,98941.0,0.045496]
[1736131507207,0.2125,98943.0,98941.0,0.045496]
[1736131507800,0.2125,98943.0,98941.0,0.046496]
[1736131509313,0.2165,98943.0,98941.0,0.046496]
[1736131510507,0.013,98943.0,98941.0,0.046496]
[1736131510803,0.002,98943.0,98941.0,0.045496]
[1736131511108,0.004,98943.0,98941.0,0.045496]
[1736131512916,0.004,98943.0,98937.0,0.24024557]
[1736131513716,0.004,98943.0,98939.0,0.30132236]
[1736131515003,0.002,98943.0,98939.0,0.30132236]
[1736131515208,0.004,98943.0,98939.0,0.30132236]
[1736131515408,0.004,98943.0,98942.0,0.24005285]
[1736131516608,0.049496,98943.0,98941.0,0.4899564]
[1736131518315,0.002,98943.0,98941.0,0.4899564]
[1736131518516,0.004,98943.0,98941.0,0.5354524]
[1736131519918,0.04549,98956.0,98942.0,0.68688822]
[1736131520124,0.04549,98956.0,98950.0,0.3608]
[1736131521322,0.04949,98956.0,98950.0,0.3608]
[1736131521726,0.05319,98956.0,98950.0,0.3608]
[1736131522918,0.06019,98956.0,98950.0,0.3618]
[1736131523124,0.045491,98954.0,98950.0,0.3618]
[1736131523621,0.045491,98954.0,98951.0,0.18011313]
[1736131524627,0.050491,98954.0,98952.0,0.18011313]
[1736131525017,0.053491,98954.0,98952.0,0.18011313]
[1736131525622,0.050491,98954.0,98952.0,0.18011313]
[1736131525827,0.053491,98954.0,98952.0,0.18011313]
[1736131526028,0.053491,98954.0,98953.0,0.18011313]
[1736131526625,0.054491,98954.0,98953.0,0.18011313]
[1736131527131,0.054491,98954.0,98951.0,0.24015084]
[1736131527322,0.048491,98954.0,98953.0,0.003]
[1736131527527,0.045491,98954.0,98953.0,0.003]
[1736131528724,0.045491,98954.0,98953.0,0.32867467]
[1736131529021,0.045491,98954.0,98953.0,0.32767467]
[1736131529326,0.045491,98954.0,98953.0,0.32867467]
[1736131529532,0.045491,98954.0,98953.0,0.32667467]
[1736131529727,0.045491,98954.0,98953.0,0.33067467]
[1736131530126,0.045491,98954.0,98953.0,0.32667467]
[1736131530327,0.045491,98954.0,98953.0,0.32967467]
[1736131531436,0.20512487,98958.0,98953.0,0.6902615]
[1736131532133,0.045491,98954.0,98953.0,0.32667467]
[1736131532326,0.045491,98954.0,98953.0,0.32967467]
[1736131532920,0.045491,98954.0,98953.0,0.32767467]
[1736131533427,0.2022,98968.0,98953.0,0.68947467]
[1736131533725,0.2032,98973.0,98962.0,0.3608]
[1736131533931,0.20884633,98973.0,98962.0,0.3608]
[1736131534918,0.20884633,98973.0,98964.0,0.045486]
[1736131535320,0.002,98968.0,98964.0,0.045486]
[1736131535626,0.002,98968.0,98962.0,0.3608]
[1736131535627,0.002,98968.0,98963.0,0.71114493]
[1736131535824,0.045483,98971.0,98963.0,0.71114493]
[1736131536634,0.002,98968.0,98963.0,0.71114493]
[1736131537027,0.002,98968.0,98964.0,0.32567467]
[1736131538130,0.2052,98973.0,98964.0,0.32567467]
[1736131538344,0.003,98971.0,98968.0,0.045484]
[1736131538836,0.04548,98979.0,98970.0,0.3608]
[1736131539426,0.005,98971.0,98970.0,0.3608]
[1736131540139,0.002,98971.0,98970.0,0.3608]
[1736131540829,0.002,98971.0,98970.0,0.406283]
[1736131541032,0.004,98974.0,98970.0,0.406283]
[1736131541332,0.006,98974.0,98970.0,0.3608]
[1736131541533,0.85908,99009.0,98971.0,0.3919]
[1736131541534,0.045475,98988.0,98971.0,0.3919]
[1736131541734,0.05114955,98988.0,98987.0,0.3608]
[1736131541932,0.00567455,98988.0,98987.0,0.3608]
[1736131542239,0.1,99000.0,98987.0,0.3608]
[1736131542240,0.14547,99000.0,98989.0,0.045474]
[1736131542544,0.00575408,98998.0,98989.0,0.045474]
[1736131543039,0.00575408,98998.0,98990.0,0.045474]
[1736131543240,0.14547,99000.0,98997.0,0.3608]
[1736131543426,0.10573564,99000.0,98995.0,0.3608]
[1736131543625,0.045475,98988.0,98987.0,0.001]
[1736131544642,0.009,98991.0,98984.0,0.36177296]
[1736131544838,0.045476,98986.0,98984.0,0.36177296]
[1736131545642,0.045476,98986.0,98985.0,0.32232818]
[1736131546338,0.046476,98986.0,98985.0,0.32232818]
[1736131546540,0.047476,98986.0,98985.0,0.32232818]
[1736131548734,0.05324388,98986.0,98985.0,0.32232818]
[1736131550045,0.05324388,98986.0,98985.0,0.62280305]
[1736131551543,0.00776788,98986.0,98979.0,0.30047487]
[1736131551843,0.045478,98982.0,98979.0,0.30047487]
[1736131553342,0.00676788,98986.0,98979.0,0.30147487]
[1736131553543,0.045478,98981.0,98979.0,0.001]
[1736131554048,0.1979,98988.0,98979.0,0.001]
[1736131554245,0.045478,98981.0,98979.0,0.001]
[1736131555349,0.20380273,98988.0,98977.0,0.30047487]
[1736131555548,0.045479,98978.0,98977.0,0.30047487]
[1736131556244,0.045479,98978.0,98975.0,0.3608]
[1736131556739,0.045479,98978.0,98977.0,0.002]
[1736131558540,0.045479,98978.0,98977.0,0.003]
[1736131559342,0.20380273,98988.0,98977.0,0.32103196]
[1736131559542,0.045475,98987.0,98977.0,0.32103196]
[1736131559737,0.045479,98979.0,98977.0,0.32103196]
[1736131559944,0.045479,98979.0,98977.0,0.32303196]
[1736131560547,0.045479,98979.0,98977.0,0.32003196]
[1736131560845,0.045479,98979.0,98978.0,0.32003196]
[1736131563055,0.045476,98987.0,98981.0,0.045478]
[1736131563351,0.045476,98987.0,98985.0,0.3608]
[1736131564351,0.047476,98987.0,98985.0,0.3608]
[1736131564751,0.047476,98987.0,98978.0,0.32003196]
[1736131564957,0.047476,98987.0,98986.0,0.32003196]
[1736131565746,0.046476,98987.0,98986.0,0.32003196]
[1736131565948,0.047476,98987.0,98986.0,0.32003196]
[1736131566550,0.047476,98987.0,98986.0,0.68118018]
[1736131567859,0.047476,98987.0,98986.0,0.32003196]
[1736131568952,0.408276,98987.0,98986.0,0.32003196]
[1736131569349,0.047476,98987.0,98986.0,0.32003196]
[1736131569748,0.408276,98987.0,98986.0,0.32003196]
[1736131572546,0.002,98987.0,98986.0,0.32003196]
[1736131576254,0.002,98987.0,98986.0,0.77020472]
[1736131577557,0.047475,98987.0,98986.0,0.77020472]
[1736131578159,0.047475,98987.0,98975.0,0.3608]
[1736131578160,0.002,98987.0,98975.0,0.3608]
[1736131578357,0.3608,98967.0,98951.0,0.45632233]
[1736131578563,0.19651638,98961.0,98936.0,0.16152148]
[1736131578876,0.045498,98937.0,98936.0,0.16152148]
[1736131579058,0.767098,98937.0,98936.0,0.16152148]
[1736131579360,0.045503,98926.0,98908.0,0.76891805]
[1736131579561,0.7216,98937.0,98908.0,0.76839805]
[1736131579562,0.3608,98911.0,98908.0,0.76839805]
[1736131580361,0.3608,98911.0,98895.0,0.045517]
[1736131580561,0.3608,98911.0,98900.0,0.09825819]
[1736131580758,0.15082542,98912.0,98905.0,0.3608]
[1736131580956,0.3608,98919.0,98908.0,0.045511]
[1736131581260,0.3608,98931.0,98918.0,0.3608]
[1736131581661,0.12074588,98919.0,98918.0,0.3608]
[1736131581964,0.3608,98931.0,98918.0,0.3608]
[1736131582169,0.0455,98933.0,98918.0,1.8608]
[1736131582369,0.0455,98933.0,98927.0,0.3608]
[1736131582771,0.045502,98928.0,98927.0,0.3608]
[1736131582973,0.045502,98928.0,98918.0,1.50452]
[1736131583167,0.045502,98928.0,98918.0,1.503]
[1736131583471,0.09825819,98930.0,98918.0,1.503]
[1736131583670,0.045506,98920.0,98918.0,0.003]
[1736131583861,0.045507,98917.0,98901.0,0.045514]
[1736131584062,0.045507,98917.0,98915.0,0.3608]
[1736131584260,0.045507,98917.0,98916.0,0.4039]
[1736131584461,0.05267363,98917.0,98916.0,0.1944]
[1736131584665,0.045515,98900.0,98899.0,0.2095]
[1736131584867,0.045516,98898.0,98897.0,0.1944]
[1736131586162,0.046516,98898.0,98897.0,0.2014]
[1736131586759,0.046516,98898.0,98897.0,0.1974]
[1736131586970,0.046516,98898.0,98897.0,0.003]
[1736131587270,0.045522,98884.0,98874.0,0.2003]
[1736131587475,0.14378019,98884.0,98874.0,0.2003]
[1736131587769,0.09825819,98884.0,98874.0,0.2003]
[1736131587970,0.3608,98882.0,98874.0,0.2003]
[1736131588270,0.045526,98875.0,98874.0,0.2003]
[1736131588663,0.045526,98875.0,98874.0,0.2083]
[1736131589266,0.045524,98881.0,98874.0,0.003]
[1736131589470,0.046526,98875.0,98874.0,0.011]
[1736131590970,0.001,98875.0,98874.0,0.3718]
[1736131591476,0.001,98881.0,98874.0,0.3708]
[1736131591869,0.001,98881.0,98875.0,1.5]
[1736131592067,0.09825819,98884.0,98875.0,1.5]
[1736131592568,0.09825819,98884.0,98876.0,0.212]
[1736131593074,0.09825819,98884.0,98875.0,1.49997999]
[1736131593271,0.045523,98883.0,98875.0,1.49997999]
[1736131593468,0.045523,98883.0,98875.0,1.49945999]
[1736131594570,0.045523,98883.0,98874.0,0.3608]
[1736131594767,0.001,98884.0,98882.0,0.3608]
[1736131594968,0.001,98884.0,98883.0,1.5]
[1736131595168,0.045519,98892.0,98883.0,1.5]
[1736131595370,0.09825819,98900.0,98883.0,1.5]
[1736131595568,0.09825819,98900.0,98899.0,0.3608]
[1736131595777,0.045515,98901.0,98899.0,0.3608]
[1736131596471,0.19651638,98910.0,98892.0,0.1947]
[1736131596678,0.045518,98895.0,98892.0,0.1947]
[1736131597670,0.09825819,98902.0,98892.0,0.1947]
[1736131597871,0.09825819,98902.0,98893.0,0.4141]
[1736131598169,0.09825819,98902.0,98899.0,0.002]
[1736131598370,0.045513,98904.0,98899.0,0.002]
[1736131598773,0.003,98902.0,98900.0,0.3608]
[1736131599375,0.04551,98912.0,98900.0,0.3608]
[1736131600066,0.00920345,98914.0,98900.0,0.3608]
[1736131600067,0.003,98902.0,98900.0,0.3608]
[1736131601974,0.045511,98909.0,98900.0,0.3608]
[1736131602190,0.09825819,98910.0,98900.0,0.3628]
[1736131602369,0.045514,98901.0,98900.0,0.3628]
[1736131603081,0.045514,98901.0,98900.0,0.3618]
[1736131603777,0.046514,98901.0,98900.0,0.3608]
[1736131604583,0.001,98901.0,98900.0,0.3608]
[1736131605182,0.045512,98907.0,98900.0,0.3608]
[1736131605482,0.004,98901.0,98900.0,0.406315]
[1736131605681,0.045512,98907.0,98900.0,0.406315]
[1736131606083,0.045512,98907.0,98900.0,0.409315]
[1736131606274,0.18141192,98927.0,98900.0,0.3638]
[1736131606471,0.045508,98915.0,98906.0,0.045512]
[1736131606884,0.045504,98925.0,98916.0,0.045507]
[1736131607088,0.045504,98925.0,98924.0,0.3608]
[1736131607985,0.00151726,98927.0,98924.0,0.3608]
[1736131608783,0.00151726,98927.0,98926.0,0.045503]
[1736131608989,0.045497,98940.0,98933.0,0.045499]
[1736131609173,0.17989466,98943.0,98938.0,0.045497]
[1736131609692,0.17989466,98943.0,98939.0,0.2114]
[1736131609889,0.69164089,98983.0,98939.0,0.2114]
[1736131610090,0.26598533,98980.0,98969.0,0.3608]
[1736131610486,0.29657833,98988.0,98987.0,0.045475]
[1736131610779,0.33084089,98996.0,98994.0,0.045471]
[1736131610980,0.33084089,98996.0,98995.0,1.8608]
[1736131611180,0.33084089,98996.0,98995.0,0.3608]
[1736131611588,0.1,99000.0,98995.0,0.3608]
[1736131612381,0.007,98996.0,98995.0,0.3618]
[1736131612984,0.104,99000.0,98995.0,0.3618]
[1736131612985,0.112,99000.0,98995.0,0.3618]
[1736131613392,0.108,99000.0,98995.0,0.3618]
[1736131613689,0.003,98996.0,98995.0,0.3618]
[1736131614987,0.108,99000.0,98995.0,0.3618]
[1736131615185,0.112,99000.0,98995.0,0.3618]
[1736131615388,0.007,98996.0,98995.0,0.3618]
[1736131615992,0.01,98996.0,98995.0,0.3618]
[1736131622404,0.055471,98996.0,98995.0,0.3618]
[1736131622603,0.045471,98995.0,98983.0,0.045476]
[1736131622903,0.045475,98988.0,98977.0,0.3608]
[1736131623401,0.2023,98987.0,98977.0,0.3608]
[1736131625195,0.2033,98987.0,98977.0,0.3608]
[1736131625598,0.004,98987.0,98986.0,0.3608]
[1736131626204,0.1,99000.0,98987.0,0.045475]
[1736131626497,0.1,99000.0,98999.0,0.3608]
[1736131626700,0.1,99000.0,98999.0,0.406269]
[1736131627098,0.1,99000.0,98999.0,1.906269]
[1736131627305,0.108,99000.0,98999.0,1.906269]
[1736131628102,0.111,99000.0,98999.0,1.906269]
[1736131628798,0.103,99000.0,98999.0,1.906269]
[1736131629107,0.11,99000.0,98999.0,1.907269]
[1736131630203,0.11,99000.0,98999.0,0.407269]
[1736131632404,0.11,99000.0,98999.0,0.3618]
[1736131632605,0.155469,99000.0,98999.0,0.3618]
[1736131632795,0.155469,99000.0,98999.0,0.001]
[1736131633005,0.155469,99000.0,98986.0,0.3608]
[1736131633006,0.11,99000.0,98986.0,0.3608]
[1736131633408,0.045472,98993.0,98986.0,0.3608]
[1736131635002,0.047472,98993.0,98986.0,0.3608]
[1736131635406,0.051472,98993.0,98986.0,0.3608]
[1736131635910,0.412272,98993.0,98986.0,0.3608]
[1736131637206,0.051472,98993.0,98986.0,0.3608]
[1736131637406,0.045473,98991.0,98986.0,0.3608]
[1736131637712,0.045474,98989.0,98986.0,0.3608]
[1736131639503,0.048474,98989.0,98986.0,0.3608]
[1736131640410,0.049474,98989.0,98986.0,0.3608]
[1736131641515,0.004,98989.0,98986.0,0.3608]
[1736131641709,0.045475,98987.0,98986.0,0.3608]
[1736131643310,0.047475,98987.0,98986.0,0.3608]
[1736131643510,0.048475,98987.0,98986.0,0.3608]
[1736131645017,0.003,98987.0,98986.0,0.406275]
[1736131649514,0.003,98987.0,98986.0,1.906275]
[1736131651215,0.003,98987.0,98986.0,0.406275]
[1736131651422,0.048474,98987.0,98986.0,0.3608]
[1736131651912,0.003,98987.0,98986.0,0.3608]
[1736131652115,0.003,98987.0,98986.0,0.6609871]
[1736131652513,0.003,98987.0,98986.0,0.8773871]
[1736131653323,0.003,98987.0,98986.0,0.83917765]
[1736131653617,0.003,98987.0,98986.0,2.33917765]
[1736131658231,0.1,99000.0,98999.0,0.045469]
[1736131658417,0.1,99000.0,98999.0,0.406269]
[1736131659325,0.103,99000.0,98999.0,0.406269]
[1736131659515,0.11,99000.0,98999.0,0.407269]
[1736131660724,0.11,99000.0,98999.0,0.66924665]
[1736131661723,0.155468,99000.0,98999.0,0.62377765]
[1736131661921,0.516268,99000.0,98999.0,0.26297765]
[1736131662117,0.516268,99000.0,98986.0,0.3608]
[1736131662423,0.045474,98988.0,98986.0,0.3608]
[1736131663023,0.045474,98988.0,98979.0,0.045478]
[1736131663218,0.045474,98988.0,98980.0,0.045477]
[1736131663524,0.045474,98988.0,98987.0,0.24159737]
[1736131663714,0.047474,98988.0,98987.0,0.24159737]